[Event "*** Titled Tuesday Blitz"]
[Site "Chess.com"]
[Date "2020.05.19"]
[Round "3"]
[White "kot60"]
[Black "calin_dragomirescu"]
[Result "1-0"]
[WhiteElo "2384"]
[BlackElo "2196"]
[TimeControl "180+1"]
[EndTime "12:26:42 PDT"]
[Termination "kot60 won by resignation"]

1. e4 {[%clk 0:03:00.9]} 1... g6 {[%clk 0:02:47.8]} 2. d4 {[%clk 0:03:00]} 2...
Bg7 {[%clk 0:02:47.3]} 3. c3 {[%clk 0:03:00.2]} 3... d6 {[%clk 0:02:47.8]} 4.
Bd3 {[%clk 0:03:00.1]} 4... Nf6 {[%clk 0:02:48.3]} 5. f3 {[%clk 0:02:59.6]} 5...
O-O {[%clk 0:02:48.5]} 6. Ne2 {[%clk 0:02:59.5]} 6... Nc6 {[%clk 0:02:48.8]} 7.
h4 {[%clk 0:02:59.3]} 7... e5 {[%clk 0:02:49.2]} 8. h5 {[%clk 0:02:55.3]} 8...
exd4 {[%clk 0:02:47]} 9. cxd4 {[%clk 0:02:54.9]} 9... Nxh5 {[%clk 0:02:46.7]}
10. g4 {[%clk 0:02:52.8]} 10... Nf6 {[%clk 0:02:41.9]} 11. Bh6 {[%clk
0:02:47.9]} 11... Bxg4 {[%clk 0:02:26.1]} 12. Bxg7 {[%clk 0:02:42.4]} 12... Kxg7
{[%clk 0:02:24.4]} 13. fxg4 {[%clk 0:02:42.5]} 13... Nxg4 {[%clk 0:02:24.4]} 14.
Qd2 {[%clk 0:02:41]} 14... h5 {[%clk 0:02:19.1]} 15. Nbc3 {[%clk 0:02:39.9]}
15... Qf6 {[%clk 0:02:15.1]} 16. O-O-O {[%clk 0:02:20.3]} 16... Nxd4 {[%clk
0:02:12.3]} 17. Nd5 {[%clk 0:02:15.5]} 17... Nxe2+ {[%clk 0:02:08.3]} 18. Bxe2
{[%clk 0:02:14.5]} 18... Qe5 {[%clk 0:01:56.1]} 19. Bxg4 {[%clk 0:02:12.6]}
19... c6 {[%clk 0:01:50.1]} 20. Ne3 {[%clk 0:01:44.8]} 20... Qxe4 {[%clk
0:01:32.4]} 21. Bh3 {[%clk 0:01:27]} 21... d5 {[%clk 0:01:24.9]} 22. Nf5+ {[%clk
0:01:21]} 22... Kf6 {[%clk 0:01:10.4]} 23. Qc3+ {[%clk 0:01:16.3]} 23... Qe5
{[%clk 0:01:06.2]} 24. Qd2 {[%clk 0:01:00.5]} 24... gxf5 {[%clk 0:01:02.5]} 25.
Qh6+ {[%clk 0:00:56.3]} 1-0

[Event "*** Titled Tuesday Blitz"]
[Site "Chess.com"]
[Date "2020.05.19"]
[Round "3"]
[White "Shield12"]
[Black "Aemulus20"]
[Result "1-0"]
[WhiteElo "2820"]
[BlackElo "2577"]
[TimeControl "180+1"]
[EndTime "12:26:48 PDT"]
[Termination "Shield12 won by checkmate"]

1. e4 {[%clk 0:03:00.9]} 1... c5 {[%clk 0:03:00.2]} 2. Nf3 {[%clk 0:03:00.9]}
2... d6 {[%clk 0:03:00.6]} 3. c3 {[%clk 0:03:01.2]} 3... Nf6 {[%clk 0:03:00.7]}
4. h3 {[%clk 0:03:01.5]} 4... Nc6 {[%clk 0:02:59.6]} 5. Bd3 {[%clk 0:03:01.4]}
5... g6 {[%clk 0:02:59.1]} 6. Bc2 {[%clk 0:03:01.6]} 6... Bg7 {[%clk 0:02:59.6]}
7. O-O {[%clk 0:03:01.9]} 7... O-O {[%clk 0:03:00]} 8. d4 {[%clk 0:03:02.3]}
8... e5 {[%clk 0:03:00.3]} 9. Re1 {[%clk 0:03:01.5]} 9... Re8 {[%clk 0:02:59.8]}
10. dxc5 {[%clk 0:02:58.9]} 10... dxc5 {[%clk 0:02:59.5]} 11. Nbd2 {[%clk
0:02:59.7]} 11... Qc7 {[%clk 0:02:45.5]} 12. Qe2 {[%clk 0:02:58.3]} 12... h6
{[%clk 0:02:40.3]} 13. a4 {[%clk 0:02:56.1]} 13... b6 {[%clk 0:02:39.9]} 14. Nf1
{[%clk 0:02:50.7]} 14... Be6 {[%clk 0:02:36.3]} 15. Ne3 {[%clk 0:02:40.8]} 15...
Rad8 {[%clk 0:02:35.7]} 16. b3 {[%clk 0:02:39.9]} 16... Na5 {[%clk 0:02:29.8]}
17. c4 {[%clk 0:02:39.3]} 17... Nc6 {[%clk 0:02:28]} 18. Nd5 {[%clk 0:02:39.5]}
18... Bxd5 {[%clk 0:02:15.7]} 19. cxd5 {[%clk 0:02:37.3]} 19... Nd4 {[%clk
0:02:14.8]} 20. Qd1 {[%clk 0:02:27.6]} 20... a5 {[%clk 0:02:01.6]} 21. Bd3
{[%clk 0:02:25.2]} 21... Rf8 {[%clk 0:01:59.5]} 22. Nxd4 {[%clk 0:02:22.8]}
22... exd4 {[%clk 0:01:56.9]} 23. f4 {[%clk 0:02:19.3]} 23... Rfe8 {[%clk
0:01:52.6]} 24. Bd2 {[%clk 0:02:17.3]} 24... Nh5 {[%clk 0:01:43.5]} 25. Qf3
{[%clk 0:02:15.3]} 25... Nf6 {[%clk 0:01:37]} 26. Bc4 {[%clk 0:02:10.4]} 26...
g5 {[%clk 0:01:25.7]} 27. e5 {[%clk 0:02:06.3]} 27... Nd7 {[%clk 0:01:22.4]} 28.
d6 {[%clk 0:02:00.8]} 28... Qb8 {[%clk 0:01:19.7]} 29. Qh5 {[%clk 0:01:46.4]}
29... Rf8 {[%clk 0:01:10.8]} 30. fxg5 {[%clk 0:01:43]} 30... Nxe5 {[%clk
0:00:57.2]} 31. gxh6 {[%clk 0:01:41.2]} 31... Nxc4 {[%clk 0:00:44.2]} 32. hxg7
{[%clk 0:01:37.6]} 32... Nxd2 {[%clk 0:00:32.8]} 33. Qh8# {[%clk 0:01:36.9]} 1-0

[Event "*** Titled Tuesday Blitz"]
[Site "Chess.com"]
[Date "2020.05.19"]
[Round "3"]
[White "SaySpade4VIP"]
[Black "ZverevLev"]
[Result "1-0"]
[WhiteElo "2680"]
[BlackElo "2170"]
[TimeControl "180+1"]
[EndTime "12:26:48 PDT"]
[Termination "SaySpade4VIP won by resignation"]

1. d4 {[%clk 0:02:53.5]} 1... Nf6 {[%clk 0:02:58.1]} 2. Bg5 {[%clk 0:02:53.5]}
2... Ne4 {[%clk 0:02:56.4]} 3. h4 {[%clk 0:02:53.2]} 3... d5 {[%clk 0:02:51]} 4.
Nd2 {[%clk 0:02:51.9]} 4... Nxg5 {[%clk 0:02:48.2]} 5. hxg5 {[%clk 0:02:52.8]}
5... c5 {[%clk 0:02:48.1]} 6. dxc5 {[%clk 0:02:48]} 6... e6 {[%clk 0:02:46.1]}
7. Ngf3 {[%clk 0:02:47.5]} 7... Bxc5 {[%clk 0:02:44.8]} 8. e4 {[%clk 0:02:47.9]}
8... Nc6 {[%clk 0:02:30.5]} 9. Bd3 {[%clk 0:02:38]} 9... Nb4 {[%clk 0:02:26.8]}
10. Nb3 {[%clk 0:02:33.1]} 10... Nxd3+ {[%clk 0:02:25.7]} 11. Qxd3 {[%clk
0:02:34]} 11... Bb6 {[%clk 0:02:17.8]} 12. O-O-O {[%clk 0:02:25.5]} 12... d4
{[%clk 0:01:55.8]} 13. e5 {[%clk 0:02:01.3]} 13... h6 {[%clk 0:01:04.8]} 14.
gxh6 {[%clk 0:01:54.6]} 14... Rxh6 {[%clk 0:01:05.4]} 15. Rxh6 {[%clk
0:01:52.7]} 15... gxh6 {[%clk 0:01:06.3]} 16. Qh7 {[%clk 0:01:47.1]} 16... Qd5
{[%clk 0:00:57.8]} 17. Nbxd4 {[%clk 0:01:37.3]} 17... Bxd4 {[%clk 0:00:52.7]}
18. Rxd4 {[%clk 0:01:36.3]} 18... Qa5 {[%clk 0:00:52.5]} 19. Qxh6 {[%clk
0:01:10.7]} 19... Ke7 {[%clk 0:00:46.8]} 20. Qf6+ {[%clk 0:01:08.8]} 20... Ke8
{[%clk 0:00:45.2]} 21. Ng5 {[%clk 0:01:08.5]} 21... Qc7 {[%clk 0:00:38.2]} 22.
Rd8+ {[%clk 0:01:08.4]} 1-0

[Event "*** Titled Tuesday Blitz"]
[Site "Chess.com"]
[Date "2020.05.19"]
[Round "3"]
[White "ChelsieMonica"]
[Black "The_Chess_Coach"]
[Result "1-0"]
[WhiteElo "2333"]
[BlackElo "2130"]
[TimeControl "180+1"]
[EndTime "12:26:49 PDT"]
[Termination "ChelsieMonica won by resignation"]

1. c4 {[%clk 0:03:00.9]} 1... Nf6 {[%clk 0:02:57.3]} 2. Nc3 {[%clk 0:02:51.1]}
2... g6 {[%clk 0:02:58.2]} 3. Nf3 {[%clk 0:02:50.2]} 3... Bg7 {[%clk 0:02:59.1]}
4. e3 {[%clk 0:02:51.1]} 4... d6 {[%clk 0:02:59.4]} 5. d4 {[%clk 0:02:52]} 5...
O-O {[%clk 0:02:59.6]} 6. Be2 {[%clk 0:02:52.9]} 6... c5 {[%clk 0:02:59.3]} 7.
O-O {[%clk 0:02:53.8]} 7... a6 {[%clk 0:02:58.4]} 8. d5 {[%clk 0:02:54.3]} 8...
Nbd7 {[%clk 0:02:56.7]} 9. h3 {[%clk 0:02:54.6]} 9... b5 {[%clk 0:02:56.3]} 10.
cxb5 {[%clk 0:02:53.7]} 10... axb5 {[%clk 0:02:57.2]} 11. Bxb5 {[%clk
0:02:54.1]} 11... Rb8 {[%clk 0:02:54.1]} 12. a4 {[%clk 0:02:52.7]} 12... Ne8
{[%clk 0:02:47.9]} 13. e4 {[%clk 0:02:43.9]} 13... Nc7 {[%clk 0:02:45.8]} 14.
Qe2 {[%clk 0:02:33.4]} 14... Nxb5 {[%clk 0:02:40.9]} 15. axb5 {[%clk 0:02:29.6]}
15... Qc7 {[%clk 0:02:33.3]} 16. Bg5 {[%clk 0:02:28]} 16... Re8 {[%clk
0:02:29.9]} 17. Bf4 {[%clk 0:02:26]} 17... c4 {[%clk 0:02:27]} 18. Rfc1 {[%clk
0:01:59.9]} 18... Nc5 {[%clk 0:02:00.8]} 19. Qxc4 {[%clk 0:01:58.7]} 19... Bd7
{[%clk 0:01:56.3]} 20. b4 {[%clk 0:01:56.6]} 20... Na6 {[%clk 0:01:54.1]} 21.
Qb3 {[%clk 0:01:50]} 21... Bxb5 {[%clk 0:01:32.9]} 22. Nxb5 {[%clk 0:01:48.4]}
22... Qb6 {[%clk 0:01:33.3]} 23. Rxa6 {[%clk 0:01:34.6]} 23... Qxb5 {[%clk
0:01:08.1]} 24. Rac6 {[%clk 0:01:32.6]} 24... Qxb4 {[%clk 0:01:03.9]} 25. Qxb4
{[%clk 0:01:32.3]} 25... Rxb4 {[%clk 0:01:04.8]} 26. R6c4 {[%clk 0:01:32.3]}
26... Rb2 {[%clk 0:01:03.6]} 27. Be3 {[%clk 0:01:30.4]} 27... Rb5 {[%clk
0:00:57.2]} 28. Nd4 {[%clk 0:01:30.4]} 28... Rb2 {[%clk 0:00:50.9]} 29. Rc7
{[%clk 0:01:28.7]} 29... e6 {[%clk 0:00:47.2]} 30. Rc8 {[%clk 0:01:23.6]} 30...
Kf8 {[%clk 0:00:40.3]} 31. dxe6 {[%clk 0:01:21.6]} 1-0

[Event "*** Titled Tuesday Blitz"]
[Site "Chess.com"]
[Date "2020.05.19"]
[Round "3"]
[White "ChEsper99"]
[Black "heartofatiger"]
[Result "1-0"]
[WhiteElo "2048"]
[BlackElo "2446"]
[TimeControl "180+1"]
[EndTime "12:26:50 PDT"]
[Termination "ChEsper99 won by resignation"]

1. e4 {[%clk 0:03:00.9]} 1... c5 {[%clk 0:02:59.2]} 2. Nf3 {[%clk 0:03:00.9]}
2... e6 {[%clk 0:02:59.2]} 3. c3 {[%clk 0:03:00.8]} 3... d5 {[%clk 0:02:57.6]}
4. exd5 {[%clk 0:03:01.7]} 4... Qxd5 {[%clk 0:02:57.2]} 5. d4 {[%clk 0:03:02.3]}
5... Nf6 {[%clk 0:02:57]} 6. Be2 {[%clk 0:03:00.8]} 6... Be7 {[%clk 0:02:55.9]}
7. Be3 {[%clk 0:03:00.7]} 7... Nbd7 {[%clk 0:02:55.1]} 8. O-O {[%clk 0:02:45.7]}
8... b6 {[%clk 0:02:54.5]} 9. c4 {[%clk 0:02:38.5]} 9... Qc6 {[%clk 0:02:52.9]}
10. Nc3 {[%clk 0:02:34.9]} 10... Bb7 {[%clk 0:02:51.5]} 11. Qd2 {[%clk
0:02:12.5]} 11... Rd8 {[%clk 0:02:47]} 12. d5 {[%clk 0:01:51.9]} 12... exd5
{[%clk 0:02:46.2]} 13. cxd5 {[%clk 0:01:52.1]} 13... Nxd5 {[%clk 0:02:32.7]} 14.
Bb5 {[%clk 0:01:52.1]} 14... Qe6 {[%clk 0:02:32.2]} 15. Rfe1 {[%clk 0:01:41.5]}
15... Nxe3 {[%clk 0:01:31.4]} 16. Rxe3 {[%clk 0:01:38.7]} 16... Qg6 {[%clk
0:01:31.5]} 17. Bxd7+ {[%clk 0:01:12]} 17... Rxd7 {[%clk 0:01:30.9]} 18. Qxd7+
{[%clk 0:01:12]} 18... Kxd7 {[%clk 0:01:30.3]} 19. Ne5+ {[%clk 0:01:12.4]} 1-0

[Event "*** Titled Tuesday Blitz"]
[Site "Chess.com"]
[Date "2020.05.19"]
[Round "3"]
[White "noblerone"]
[Black "luizwas"]
[Result "1-0"]
[WhiteElo "2462"]
[BlackElo "1821"]
[TimeControl "180+1"]
[EndTime "12:26:51 PDT"]
[Termination "noblerone won by resignation"]

1. d4 {[%clk 0:03:00.9]} 1... e6 {[%clk 0:02:59.4]} 2. Nf3 {[%clk 0:02:59.8]}
2... f5 {[%clk 0:02:59.3]} 3. Bg5 {[%clk 0:02:59.7]} 3... Be7 {[%clk 0:02:58.3]}
4. Bxe7 {[%clk 0:02:59.2]} 4... Qxe7 {[%clk 0:02:57.5]} 5. g3 {[%clk 0:03:00.1]}
5... Nf6 {[%clk 0:02:57.5]} 6. Nbd2 {[%clk 0:02:59]} 6... d5 {[%clk 0:02:57.8]}
7. Bg2 {[%clk 0:02:59.5]} 7... c6 {[%clk 0:02:58.3]} 8. Ne5 {[%clk 0:02:59.3]}
8... O-O {[%clk 0:02:57.4]} 9. O-O {[%clk 0:02:58.6]} 9... Nbd7 {[%clk
0:02:56.6]} 10. Ndf3 {[%clk 0:02:59]} 10... Ne4 {[%clk 0:02:48.7]} 11. Nxd7
{[%clk 0:02:50.3]} 11... Bxd7 {[%clk 0:02:46.4]} 12. c3 {[%clk 0:02:50.2]} 12...
Be8 {[%clk 0:02:42]} 13. Ne5 {[%clk 0:02:50.5]} 13... Bh5 {[%clk 0:02:39.3]} 14.
f3 {[%clk 0:02:35.8]} 14... Nd6 {[%clk 0:02:36.2]} 15. Qb3 {[%clk 0:02:34.5]}
15... a5 {[%clk 0:02:03.5]} 16. a4 {[%clk 0:02:32.5]} 16... g5 {[%clk
0:02:00.4]} 17. Rae1 {[%clk 0:02:25.4]} 17... g4 {[%clk 0:01:45.6]} 18. h3
{[%clk 0:01:47.3]} 18... gxh3 {[%clk 0:01:33]} 19. Bxh3 {[%clk 0:01:47]} 19...
Rf6 {[%clk 0:01:30.3]} 20. Kf2 {[%clk 0:01:34.7]} 20... Nc4 {[%clk 0:01:28.5]}
21. Nxc4 {[%clk 0:01:23.7]} 21... dxc4 {[%clk 0:01:29.4]} 22. Qxc4 {[%clk
0:01:24.6]} 22... Rg6 {[%clk 0:01:23]} 23. Bxf5 {[%clk 0:01:10]} 23... Rxg3
{[%clk 0:00:45.5]} 24. Qxe6+ {[%clk 0:01:06.2]} 1-0

[Event "*** Titled Tuesday Blitz"]
[Site "Chess.com"]
[Date "2020.05.19"]
[Round "3"]
[White "Ariadna_Atreides"]
[Black "fabianvivasz"]
[Result "0-1"]
[WhiteElo "2060"]
[BlackElo "2307"]
[TimeControl "180+1"]
[EndTime "12:26:54 PDT"]
[Termination "fabianvivasz won by checkmate"]

1. d4 {[%clk 0:03:00.9]} 1... Nf6 {[%clk 0:02:59.6]} 2. Nf3 {[%clk 0:03:00.6]}
2... g6 {[%clk 0:02:59]} 3. c4 {[%clk 0:03:00.1]} 3... Bg7 {[%clk 0:02:59.3]} 4.
Nc3 {[%clk 0:03:00.6]} 4... d5 {[%clk 0:02:59.9]} 5. cxd5 {[%clk 0:03:00.3]}
5... Nxd5 {[%clk 0:03:00.8]} 6. Na4 {[%clk 0:03:00.8]} 6... O-O {[%clk
0:02:58.9]} 7. e4 {[%clk 0:03:00.5]} 7... Nb6 {[%clk 0:02:59.5]} 8. Be3 {[%clk
0:03:00.3]} 8... Nc6 {[%clk 0:02:58.4]} 9. Nc5 {[%clk 0:02:54.8]} 9... Bg4
{[%clk 0:02:58]} 10. Nxb7 {[%clk 0:02:53.8]} 10... Qb8 {[%clk 0:02:56]} 11. Nc5
{[%clk 0:02:42.6]} 11... Rd8 {[%clk 0:02:48.2]} 12. Bb5 {[%clk 0:02:25.6]} 12...
Nxd4 {[%clk 0:02:41.2]} 13. Bxd4 {[%clk 0:02:01.6]} 13... Bxd4 {[%clk
0:02:41.5]} 14. Nd3 {[%clk 0:01:42.2]} 14... Bxb2 {[%clk 0:02:33.5]} 15. O-O
{[%clk 0:01:23]} 15... Bxa1 {[%clk 0:02:30.7]} 16. Qxa1 {[%clk 0:01:22.7]} 16...
Bxf3 {[%clk 0:02:31.2]} 17. gxf3 {[%clk 0:01:21.4]} 17... a6 {[%clk 0:02:26.9]}
18. Bc6 {[%clk 0:00:47.5]} 18... Rxd3 {[%clk 0:02:25.8]} 19. Bxa8 {[%clk
0:00:48.1]} 19... Qxa8 {[%clk 0:02:26.7]} 20. Kg2 {[%clk 0:00:47.2]} 20... Qc6
{[%clk 0:02:22.1]} 21. Rc1 {[%clk 0:00:46.2]} 21... Qd6 {[%clk 0:02:17.9]} 22.
Qb1 {[%clk 0:00:42.9]} 22... Rd2 {[%clk 0:02:13.8]} 23. Kg1 {[%clk 0:00:21.9]}
23... Qd4 {[%clk 0:02:09.3]} 24. Rf1 {[%clk 0:00:21.5]} 24... Nc4 {[%clk
0:02:06.5]} 25. Qb8+ {[%clk 0:00:20.1]} 25... Kg7 {[%clk 0:02:06.3]} 26. Qxc7
{[%clk 0:00:20.3]} 26... Ne5 {[%clk 0:02:06.5]} 27. Kg2 {[%clk 0:00:16.6]} 27...
Nd3 {[%clk 0:02:04.2]} 28. Qxe7 {[%clk 0:00:15.7]} 28... Rxf2+ {[%clk
0:02:02.9]} 29. Rxf2 {[%clk 0:00:13]} 29... Qxf2+ {[%clk 0:02:03.8]} 30. Kh3
{[%clk 0:00:11.6]} 30... Qxf3+ {[%clk 0:02:03.9]} 31. Kh4 {[%clk 0:00:11.2]}
31... Qf2+ {[%clk 0:02:00]} 32. Kg4 {[%clk 0:00:10.1]} 32... Qg2+ {[%clk
0:01:58.4]} 33. Kh4 {[%clk 0:00:09.2]} 33... Qxh2+ {[%clk 0:01:58.8]} 34. Kg4
{[%clk 0:00:09.1]} 34... h5+ {[%clk 0:01:58.9]} 35. Kg5 {[%clk 0:00:07.8]} 35...
Qg3# {[%clk 0:01:58.5]} 0-1

[Event "*** Titled Tuesday Blitz"]
[Site "Chess.com"]
[Date "2020.05.19"]
[Round "3"]
[White "Thee-Chessboy"]
[Black "Zufi1811"]
[Result "1-0"]
[WhiteElo "2393"]
[BlackElo "2560"]
[TimeControl "180+1"]
[EndTime "12:26:56 PDT"]
[Termination "Thee-Chessboy won by resignation"]

1. d4 {[%clk 0:03:00.9]} 1... d5 {[%clk 0:02:58.9]} 2. c4 {[%clk 0:03:00.2]}
2... e6 {[%clk 0:02:59.3]} 3. Nf3 {[%clk 0:03:00.7]} 3... Nf6 {[%clk 0:02:59.1]}
4. g3 {[%clk 0:03:01.3]} 4... Be7 {[%clk 0:02:57.1]} 5. Bg2 {[%clk 0:03:01.4]}
5... O-O {[%clk 0:02:57.7]} 6. O-O {[%clk 0:03:02.3]} 6... dxc4 {[%clk
0:02:57.7]} 7. Ne5 {[%clk 0:03:02.4]} 7... c5 {[%clk 0:02:56.5]} 8. dxc5 {[%clk
0:03:01.9]} 8... Qc7 {[%clk 0:02:56.7]} 9. Nxc4 {[%clk 0:03:02]} 9... Qxc5
{[%clk 0:02:55.7]} 10. b3 {[%clk 0:03:02.1]} 10... Rd8 {[%clk 0:02:52.7]} 11.
Nbd2 {[%clk 0:03:01.8]} 11... Nc6 {[%clk 0:02:48.8]} 12. Ba3 {[%clk 0:03:01.3]}
12... Qh5 {[%clk 0:02:46.5]} 13. Bxe7 {[%clk 0:02:59.9]} 13... Nxe7 {[%clk
0:02:47.4]} 14. e3 {[%clk 0:02:59]} 14... Qxd1 {[%clk 0:02:27.4]} 15. Rfxd1
{[%clk 0:02:58.2]} 15... Rb8 {[%clk 0:02:21.8]} 16. Ne4 {[%clk 0:02:45.5]} 16...
Rf8 {[%clk 0:02:02.7]} 17. Nxf6+ {[%clk 0:02:38.5]} 17... gxf6 {[%clk
0:02:03.6]} 18. Nd6 {[%clk 0:02:38.2]} 18... f5 {[%clk 0:01:41.9]} 19. Rac1
{[%clk 0:02:37.3]} 19... Ng6 {[%clk 0:01:18.9]} 20. Rc7 {[%clk 0:02:06.5]} 20...
e5 {[%clk 0:01:15.4]} 21. Rdc1 {[%clk 0:01:59.1]} 21... Be6 {[%clk 0:01:13.1]}
22. Nxb7 {[%clk 0:01:55.5]} 22... e4 {[%clk 0:01:01.4]} 23. Nc5 {[%clk
0:01:54.1]} 23... a5 {[%clk 0:00:54.3]} 24. Nxe6 {[%clk 0:01:49.2]} 24... fxe6
{[%clk 0:00:55.2]} 25. Bf1 {[%clk 0:01:49.6]} 25... Ne5 {[%clk 0:00:45.6]} 26.
R1c5 {[%clk 0:01:39.2]} 26... Nf3+ {[%clk 0:00:39.4]} 27. Kg2 {[%clk 0:01:38.7]}
27... Rfd8 {[%clk 0:00:29.7]} 28. Bc4 {[%clk 0:01:36.2]} 28... Rb6 {[%clk
0:00:28.1]} 29. Rxf5 {[%clk 0:01:32.4]} 1-0

[Event "*** Titled Tuesday Blitz"]
[Site "Chess.com"]
[Date "2020.05.19"]
[Round "3"]
[White "elohunter1999"]
[Black "Novoselski"]
[Result "1-0"]
[WhiteElo "2541"]
[BlackElo "2323"]
[TimeControl "180+1"]
[EndTime "12:26:58 PDT"]
[Termination "elohunter1999 won by resignation"]

1. e4 {[%clk 0:03:00.9]} 1... e5 {[%clk 0:02:59.8]} 2. Nf3 {[%clk 0:02:59.9]}
2... Nc6 {[%clk 0:03:00.1]} 3. Bb5 {[%clk 0:02:59.8]} 3... a6 {[%clk 0:03:00]}
4. Ba4 {[%clk 0:02:59.7]} 4... d6 {[%clk 0:03:00.1]} 5. O-O {[%clk 0:02:57.7]}
5... Bd7 {[%clk 0:03:00.3]} 6. d4 {[%clk 0:02:56.6]} 6... Nge7 {[%clk
0:03:00.6]} 7. c3 {[%clk 0:02:52.7]} 7... Ng6 {[%clk 0:03:00.1]} 8. Be3 {[%clk
0:02:48.2]} 8... Be7 {[%clk 0:02:59.7]} 9. Nbd2 {[%clk 0:02:47]} 9... O-O {[%clk
0:02:59.1]} 10. Re1 {[%clk 0:02:43.7]} 10... h6 {[%clk 0:02:58.3]} 11. Nf1
{[%clk 0:02:39.2]} 11... Nh4 {[%clk 0:02:57.8]} 12. Nxh4 {[%clk 0:02:29.4]}
12... Bxh4 {[%clk 0:02:58.7]} 13. Bc2 {[%clk 0:02:08.7]} 13... Bg5 {[%clk
0:02:56.1]} 14. Qd2 {[%clk 0:01:59.3]} 14... Qf6 {[%clk 0:02:53.2]} 15. Rad1
{[%clk 0:01:54.7]} 15... Bg4 {[%clk 0:02:40.2]} 16. f3 {[%clk 0:01:49.9]} 16...
Bc8 {[%clk 0:02:37.3]} 17. Bxg5 {[%clk 0:01:34.5]} 17... hxg5 {[%clk 0:02:35]}
18. Ne3 {[%clk 0:01:29]} 18... Ne7 {[%clk 0:02:28.5]} 19. Bb3 {[%clk 0:01:22.5]}
19... Qf4 {[%clk 0:02:14.2]} 20. Rf1 {[%clk 0:01:08.4]} 20... c6 {[%clk
0:01:57]} 21. dxe5 {[%clk 0:01:03.4]} 21... dxe5 {[%clk 0:01:55.5]} 22. g3
{[%clk 0:01:03.1]} 22... Qf6 {[%clk 0:01:53.8]} 23. Ng4 {[%clk 0:00:52.7]} 23...
Bxg4 {[%clk 0:01:44.3]} 24. fxg4 {[%clk 0:00:53.6]} 24... Qg6 {[%clk 0:01:26.2]}
25. Qd7 {[%clk 0:00:50.3]} 25... Rae8 {[%clk 0:01:24.6]} 26. Bxf7+ {[%clk
0:00:37.3]} 26... Qxf7 {[%clk 0:01:19.8]} 27. Rxf7 {[%clk 0:00:35.9]} 27... Kxf7
{[%clk 0:01:20.7]} 28. Rf1+ {[%clk 0:00:35.6]} 28... Kg8 {[%clk 0:01:19.7]} 29.
Qe6+ {[%clk 0:00:35.6]} 1-0

[Event "*** Titled Tuesday Blitz"]
[Site "Chess.com"]
[Date "2020.05.19"]
[Round "3"]
[White "Andrii_Prydun"]
[Black "pawnwonder"]
[Result "1-0"]
[WhiteElo "2396"]
[BlackElo "2198"]
[TimeControl "180+1"]
[EndTime "12:27:01 PDT"]
[Termination "Andrii_Prydun won on time"]

1. d4 {[%clk 0:03:00.9]} 1... Nf6 {[%clk 0:02:57.9]} 2. Nc3 {[%clk 0:02:59.2]}
2... g6 {[%clk 0:02:56.1]} 3. g3 {[%clk 0:02:56.8]} 3... d5 {[%clk 0:02:53.2]}
4. Bf4 {[%clk 0:02:55.1]} 4... Bg7 {[%clk 0:02:51.3]} 5. Bg2 {[%clk 0:02:50.6]}
5... O-O {[%clk 0:02:48.8]} 6. Nf3 {[%clk 0:02:49.5]} 6... c6 {[%clk 0:02:15.8]}
7. O-O {[%clk 0:02:48.8]} 7... Nbd7 {[%clk 0:02:12.5]} 8. Re1 {[%clk 0:02:43.3]}
8... Re8 {[%clk 0:02:12.7]} 9. Ne5 {[%clk 0:02:42.5]} 9... Nh5 {[%clk
0:02:03.7]} 10. e4 {[%clk 0:02:40]} 10... Nxf4 {[%clk 0:01:52.6]} 11. gxf4
{[%clk 0:02:39.9]} 11... dxe4 {[%clk 0:01:52.1]} 12. Nxe4 {[%clk 0:02:39.2]}
12... Nf6 {[%clk 0:01:47.2]} 13. Ng5 {[%clk 0:02:37.3]} 13... Rf8 {[%clk
0:01:40.2]} 14. c3 {[%clk 0:02:37.6]} 14... h6 {[%clk 0:01:17.2]} 15. Ngf3
{[%clk 0:02:15.3]} 15... Nd5 {[%clk 0:01:12.5]} 16. Qd2 {[%clk 0:02:15.5]} 16...
Bf5 {[%clk 0:00:58.2]} 17. Nh4 {[%clk 0:02:11.4]} 17... Be6 {[%clk 0:00:53.8]}
18. Nexg6 {[%clk 0:02:02]} 18... fxg6 {[%clk 0:00:49.7]} 19. Rxe6 {[%clk
0:02:01.8]} 19... Nxf4 {[%clk 0:00:47]} 20. Re4 {[%clk 0:01:57.9]} 20... Nxg2
{[%clk 0:00:28.1]} 21. Kxg2 {[%clk 0:01:53.6]} 21... Qd5 {[%clk 0:00:21.3]} 22.
f3 {[%clk 0:01:54]} 22... Qd6 {[%clk 0:00:15.5]} 23. Rae1 {[%clk 0:01:52.2]}
23... Rf7 {[%clk 0:00:15.2]} 24. Re6 {[%clk 0:01:49]} 24... Qd5 {[%clk
0:00:11.1]} 25. Rxg6 {[%clk 0:01:48.3]} 25... Raf8 {[%clk 0:00:10.4]} 26. Qxh6
{[%clk 0:01:48]} 26... Qxa2 {[%clk 0:00:04.1]} 27. Rg1 {[%clk 0:01:43.6]} 27...
Qxb2+ {[%clk 0:00:04.2]} 28. Kh1 {[%clk 0:01:44]} 1-0

[Event "*** Titled Tuesday Blitz"]
[Site "Chess.com"]
[Date "2020.05.19"]
[Round "3"]
[White "chessdjw"]
[Black "GMaka"]
[Result "1-0"]
[WhiteElo "2702"]
[BlackElo "2428"]
[TimeControl "180+1"]
[EndTime "12:27:02 PDT"]
[Termination "chessdjw won by resignation"]

1. e4 {[%clk 0:03:00.9]} 1... c6 {[%clk 0:02:59.9]} 2. Nf3 {[%clk 0:02:56.9]}
2... d5 {[%clk 0:03:00.8]} 3. Nc3 {[%clk 0:02:54.3]} 3... dxe4 {[%clk
0:02:58.4]} 4. Nxe4 {[%clk 0:02:53.7]} 4... Nf6 {[%clk 0:02:58.8]} 5. Qe2 {[%clk
0:02:52.8]} 5... Nxe4 {[%clk 0:02:49.8]} 6. Qxe4 {[%clk 0:02:53.7]} 6... Nd7
{[%clk 0:02:47.2]} 7. Bc4 {[%clk 0:02:52.4]} 7... Nf6 {[%clk 0:02:47.5]} 8. Ne5
{[%clk 0:02:49.1]} 8... e6 {[%clk 0:02:46.3]} 9. Qe2 {[%clk 0:02:49.4]} 9... Bd6
{[%clk 0:02:45.4]} 10. d4 {[%clk 0:02:40.2]} 10... O-O {[%clk 0:02:42]} 11. O-O
{[%clk 0:02:39.6]} 11... c5 {[%clk 0:02:32.7]} 12. dxc5 {[%clk 0:02:24.2]} 12...
Bxc5 {[%clk 0:02:33.6]} 13. Bg5 {[%clk 0:02:05.9]} 13... Be7 {[%clk 0:02:31.6]}
14. Rad1 {[%clk 0:02:03.5]} 14... Qa5 {[%clk 0:02:20.2]} 15. Rfe1 {[%clk
0:01:55.7]} 15... Nd5 {[%clk 0:02:00.3]} 16. Rxd5 {[%clk 0:01:39.4]} 16... exd5
{[%clk 0:01:30]} 17. Bxe7 {[%clk 0:01:38.6]} 17... Re8 {[%clk 0:01:03.7]} 18.
Nxf7 {[%clk 0:01:38.1]} 18... dxc4 {[%clk 0:00:47.1]} 19. Nd6 {[%clk 0:01:37.9]}
19... Rxe7 {[%clk 0:00:16.5]} 20. Qxe7 {[%clk 0:01:18.8]} 20... h6 {[%clk
0:00:09.6]} 1-0